bitfinex-derivatives/quotes_BTCF0:USTF0_20241214
["timestamp","ask_amount","ask_price","bid_price","bid_amount"]
[1734155561016,0.52784268,101770.0,101760.0,1.09477026]
[1734155565022,0.52784268,101770.0,101760.0,0.98520262]
[1734155565228,0.52784268,101770.0,101760.0,1.09477026]
[1734155566736,0.52784268,101770.0,101760.0,1.0746729]
[1734155568129,0.52784268,101770.0,101760.0,1.3045249]
[1734155570518,0.52784268,101770.0,101760.0,1.0746729]
[1734155571524,0.52784268,101770.0,101760.0,1.01988908]
[1734155571730,0.52784268,101770.0,101760.0,1.0746729]
[1734155572819,0.52784268,101770.0,101760.0,1.01988908]
[1734155573424,0.52784268,101770.0,101760.0,1.0746729]
[1734155575334,0.67511917,101770.0,101760.0,1.30472433]
[1734155575831,0.67511917,101770.0,101760.0,1.30473372]
[1734155576640,0.67511917,101770.0,101760.0,0.93420526]
[1734155576836,0.55720349,101770.0,101760.0,0.98898908]
[1734155577323,0.55720349,101770.0,101760.0,0.63581382]
[1734155577524,0.55720349,101770.0,101760.0,0.98898908]
[1734155578030,0.55720349,101770.0,101760.0,0.95708908]
[1734155578329,0.70779207,101770.0,101760.0,0.95708908]
[1734155580331,0.58990349,101770.0,101760.0,0.95708908]
[1734155580632,0.70778419,101770.0,101760.0,0.95708908]
[1734155580839,0.58990349,101770.0,101760.0,0.95708908]
[1734155581038,0.70778496,101770.0,101760.0,0.95708908]
[1734155583139,1.06858496,101770.0,101760.0,0.95708908]
[1734155584335,1.06858496,101770.0,101760.0,0.60391382]
[1734155598543,0.34698496,101770.0,101760.0,0.60391382]
[1734155598749,1.06858496,101770.0,101760.0,0.60391382]
[1734155599136,0.95070349,101770.0,101760.0,0.60391382]
[1734155606843,0.95070349,101770.0,101760.0,0.95708908]
[1734155609758,0.95070349,101770.0,101760.0,0.60391382]
[1734155616263,0.95070349,101770.0,101760.0,0.54913]
[1734155616463,1.01330349,101770.0,101760.0,0.54913]
[1734155617058,1.19015173,101770.0,101760.0,0.54913]
[1734155618759,1.06808731,101770.0,101760.0,0.54913]
[1734155619559,1.24493555,101770.0,101760.0,0.54913]
[1734155620970,1.24493555,101770.0,101760.0,0.5]
[1734155622081,0.049132,101760.0,101750.0,1.22134556]
[1734155622267,0.61623119,101760.0,101750.0,1.22084556]
[1734155622468,0.61199231,101760.0,101750.0,0.581834]
[1734155622668,0.61199231,101760.0,101750.0,0.63661782]
[1734155622669,0.55720849,101760.0,101750.0,0.63661782]
[1734155622976,0.61199231,101760.0,101750.0,0.60391782]
[1734155623166,0.61199231,101760.0,101750.0,0.60441782]
[1734155624273,0.55720849,101760.0,101750.0,0.60391782]
[1734155625284,0.67502677,101760.0,101750.0,0.60441782]
[1734155626373,0.67502677,101760.0,101750.0,0.60391782]
[1734155626767,0.52775028,101760.0,101750.0,0.60391782]
[1734155627069,0.53777893,101760.0,101750.0,0.60391782]
[1734155627269,0.53777893,101760.0,101750.0,0.60441782]
[1734155628866,0.52775028,101760.0,101750.0,0.60441782]
[1734155630476,0.52775028,101760.0,101750.0,0.60391782]
[1734155631969,0.61607335,101760.0,101750.0,0.60391782]
[1734155632469,0.52775028,101760.0,101750.0,0.60391782]
[1734155634069,0.52775028,101760.0,101750.0,0.549134]
[1734155634270,0.52775028,101760.0,101750.0,0.60391782]
[1734155635172,0.61607806,101760.0,101750.0,0.549134]
[1734155635374,0.52775028,101760.0,101750.0,0.60391782]
[1734155636979,0.88855028,101760.0,101750.0,0.60391782]
[1734155637880,0.88855028,101760.0,101750.0,0.549134]
[1734155638074,0.88855028,101760.0,101750.0,0.60391782]
[1734155643285,1.03582677,101760.0,101750.0,0.60391782]
[1734155643488,0.98669477,101760.0,101750.0,0.60391782]
[1734155647181,0.86887649,101760.0,101750.0,0.60391782]
[1734155647393,0.98671282,101760.0,101750.0,0.60391782]
[1734155647591,1.03584482,101760.0,101750.0,0.60391782]
[1734155648185,0.91800849,101760.0,101750.0,0.60391782]
[1734155649095,1.03584934,101760.0,101750.0,0.60391782]
[1734155649487,0.91800849,101760.0,101750.0,0.549134]
[1734155649689,0.91800849,101760.0,101750.0,0.60391782]
[1734155649888,0.88858169,101760.0,101750.0,0.60391782]
[1734155650086,1.03585818,101760.0,101750.0,0.60391782]
[1734155650288,0.91800849,101760.0,101750.0,0.60391782]
[1734155652093,0.88859986,101760.0,101750.0,0.60391782]
[1734155654688,0.91800849,101760.0,101750.0,0.60391782]
[1734155655085,1.03589566,101760.0,101750.0,0.60391782]
[1734155655790,0.770732,101760.0,101750.0,0.60391782]
[1734155655990,0.88861858,101760.0,101750.0,0.60391782]
[1734155657087,0.88861862,101760.0,101750.0,0.60391782]
[1734155661091,0.52781862,101760.0,101750.0,0.60391782]
[1734155661801,0.16701862,101760.0,101750.0,0.60391782]
[1734155661994,0.52781862,101760.0,101750.0,0.60391782]
[1734155663000,0.52781862,101760.0,101750.0,0.95709308]
[1734155664396,0.61621975,101760.0,101750.0,1.18999581]
[1734155671703,0.61621975,101760.0,101750.0,1.1901231]
[1734155671898,0.61621975,101760.0,101750.0,1.19039363]
[1734155672099,0.61621975,101760.0,101750.0,0.95709308]
[1734155672404,0.61621975,101760.0,101750.0,1.19041106]
[1734155677209,0.25541975,101760.0,101750.0,1.19041106]
[1734155677512,0.61621975,101760.0,101750.0,1.19041106]
[1734155679503,0.61621975,101760.0,101750.0,1.13562724]
[1734155679703,0.52781862,101760.0,101750.0,1.19041106]
[1734155680109,0.67509511,101760.0,101750.0,1.19041106]
[1734155680307,0.67509511,101760.0,101750.0,1.13562724]
[1734155680814,0.67509511,101760.0,101750.0,1.13578249]
[1734155682609,0.52781862,101760.0,101750.0,0.95709308]
[1734155686211,0.52781862,101760.0,101750.0,0.90230926]
[1734155686418,0.52781862,101760.0,101750.0,0.95709308]
[1734155688913,0.52781862,101760.0,101750.0,0.60391782]
[1734155694319,0.52781862,101760.0,101750.0,0.549134]
[1734155694517,0.52781862,101760.0,101750.0,0.60391782]
[1734155695219,0.52781862,101760.0,101750.0,0.549134]
[1734155697723,0.16701862,101760.0,101750.0,0.549134]
[1734155697916,0.52781862,101760.0,101750.0,0.549134]
[1734155701325,0.409932,101760.0,101750.0,0.549134]
[1734155702221,0.049132,101760.0,101750.0,0.549134]
[1734155702416,0.409932,101760.0,101750.0,0.549134]
[1734155702719,0.67512614,101760.0,101750.0,1.13611076]
[1734155705425,0.67512614,101760.0,101740.0,0.7948202]
[1734155705426,0.99634788,101760.0,101740.0,0.7948202]
[1734155705619,0.99634788,101760.0,101730.0,0.7948202]
[1734155705620,0.049142,101740.0,101730.0,0.7948202]
[1734155705817,0.90382297,101740.0,101730.0,0.7948202]
[1734155706120,0.85604098,101740.0,101730.0,0.5]
[1734155706328,0.77153387,101740.0,101730.0,0.5]
[1734155707324,0.88914667,101740.0,101730.0,0.5]
[1734155708226,0.83020192,101740.0,101730.0,0.5]
[1734155708423,0.83020194,101740.0,101730.0,0.5]
[1734155708627,0.74203341,101740.0,101730.0,0.5]
[1734155708932,0.88914667,101740.0,101730.0,0.5]
[1734155709333,0.83016767,101740.0,101730.0,0.5]
[1734155709725,0.74203341,101740.0,101730.0,0.5]
[1734155710033,0.88914667,101740.0,101730.0,0.5]
[1734155710231,0.83013621,101740.0,101730.0,0.5]
[1734155710523,0.88914667,101740.0,101730.0,0.5005]
[1734155711218,0.74203341,101740.0,101730.0,0.5005]
[1734155711425,0.74203341,101740.0,101730.0,0.5]
[1734155712226,0.83007827,101740.0,101730.0,0.5]
[1734155712432,0.83007827,101740.0,101730.0,0.5005]
[1734155712930,1.19087827,101740.0,101730.0,0.5005]
[1734155713319,1.19087827,101740.0,101730.0,0.5]
[1734155713725,1.20069819,101740.0,101730.0,0.5]
[1734155714435,1.20069819,101740.0,101730.0,0.5005]
[1734155715429,1.20069819,101740.0,101730.0,0.5]
[1734155715624,1.25548201,101740.0,101730.0,0.5]
[1734155716029,0.049147,101730.0,101720.0,0.5]
[1734155716335,0.46473082,101730.0,101720.0,0.5]
[1734155718033,0.55277568,101730.0,101720.0,0.5]
[1734155719627,0.91357568,101730.0,101720.0,0.5]
[1734155720335,0.94417568,101730.0,101720.0,0.5]
[1734155721331,0.94417568,101730.0,101710.0,0.5301]
[1734155721332,0.049152,101720.0,101710.0,0.5301]
[1734155721532,0.46473582,101720.0,101710.0,0.5301]
[1734155723326,0.409952,101720.0,101710.0,0.5301]
[1734155723533,0.46473582,101720.0,101710.0,0.5301]
[1734155723930,0.51951964,101720.0,101710.0,0.5301]
[1734155724134,0.51951964,101720.0,101710.0,0.5]
[1734155724437,0.6075645,101720.0,101710.0,0.5]
[1734155724834,0.7251773,101720.0,101710.0,0.5]
[1734155725338,0.6075645,101720.0,101710.0,0.5]
[1734155726042,0.7251773,101720.0,101710.0,0.5]
[1734155727635,0.73508,101720.0,101710.0,0.5]
[1734155729436,0.73508,101720.0,101710.0,0.5005]
[1734155730448,1.09588,101720.0,101710.0,0.5]
[1734155731241,1.00783514,101720.0,101710.0,0.5]
[1734155731553,1.00783514,101720.0,101710.0,0.0005]
[1734155731738,1.09580843,101720.0,101710.0,0.0005]
[1734155732142,1.00783514,101720.0,101710.0,0.0005]
[1734155732334,1.00783514,101720.0,101700.0,0.68116791]
[1734155732539,0.55274279,101710.0,101700.0,0.68116791]
[1734155735339,0.67035559,101710.0,101700.0,0.68116791]
[1734155736445,0.67035559,101710.0,101700.0,0.68166791]
[1734155737351,0.67035559,101710.0,101700.0,0.68116791]
[1734155738451,0.67035559,101710.0,101700.0,0.68166791]
[1734155738648,0.61557177,101710.0,101700.0,0.68166791]
[1734155739558,0.61557177,101710.0,101700.0,0.68116791]
[1734155740345,0.61557177,101710.0,101700.0,0.68166791]
[1734155740548,0.67035559,101710.0,101700.0,0.68166791]
[1734155741357,0.67035559,101710.0,101700.0,0.68116791]
[1734155741549,0.61557177,101710.0,101700.0,0.91580547]
[1734155742446,0.97637177,101710.0,101700.0,0.91630547]
[1734155743354,0.97637177,101710.0,101700.0,0.91580547]
[1734155744048,0.25477177,101710.0,101700.0,0.91580547]
[1734155744557,0.97637177,101710.0,101700.0,0.91630547]
[1734155745554,0.97637177,101710.0,101700.0,1.21112567]
[1734155745746,0.97637177,101710.0,101700.0,0.91630547]
[1734155746456,0.97637177,101710.0,101700.0,0.91580547]
[1734155746755,0.8883688,101710.0,101700.0,0.91580547]
[1734155746961,0.97663281,101710.0,101700.0,0.91580547]
[1734155747255,0.8883688,101710.0,101700.0,1.21062567]
[1734155748458,0.8883688,101710.0,101700.0,0.97598811]
[1734155750761,0.94315262,101710.0,101700.0,0.97598811]
[1734155752454,0.22155262,101710.0,101700.0,0.97598811]
[1734155752759,0.58235262,101710.0,101700.0,0.97598811]
[1734155753259,0.58235262,101710.0,101700.0,1.32916337]
[1734155755263,0.61593018,101710.0,101700.0,1.32916337]
[1734155755966,0.25513018,101710.0,101700.0,1.32916337]
[1734155756157,0.61593018,101710.0,101700.0,1.32916337]
[1734155758865,0.25513018,101710.0,101700.0,1.32916337]
[1734155759061,0.61593018,101710.0,101700.0,1.32916337]
[1734155759569,0.5275688,101710.0,101700.0,1.32916337]
[1734155760065,0.61593403,101710.0,101700.0,1.32916337]
[1734155761762,0.5275688,101710.0,101700.0,1.32916337]
[1734155761962,0.5275688,101710.0,101700.0,0.97598811]
[1734155762169,0.5275688,101710.0,101700.0,1.32916337]
[1734155762868,0.4784128,101710.0,101700.0,1.38394719]
[1734155763070,0.56678521,101710.0,101700.0,1.14391081]
[1734155763263,0.56678521,101710.0,101700.0,1.39018777]
[1734155763460,0.44917241,101710.0,101700.0,1.39018777]
[1734155764373,0.44917241,101710.0,101700.0,1.33540395]
[1734155768665,0.44917241,101710.0,101700.0,1.33525228]
[1734155770271,0.56678521,101710.0,101700.0,1.33525228]
[1734155773170,0.56678521,101710.0,101700.0,1.33540141]
[1734155777369,0.44917241,101710.0,101700.0,1.33540141]
[1734155778265,0.56678521,101710.0,101700.0,1.33540141]
[1734155780176,0.56678521,101710.0,101700.0,1.28061759]
[1734155780373,0.61594121,101710.0,101700.0,1.28061759]
[1734155781776,0.61594121,101710.0,101700.0,1.28103462]
[1734155782875,0.61594121,101710.0,101700.0,1.24913462]
[1734155783076,0.67072503,101710.0,101700.0,1.24913462]
[1734155783776,0.67072503,101710.0,101700.0,1.00244317]
[1734155784775,0.70202503,101710.0,101700.0,1.00244317]
[1734155785180,0.70202503,101710.0,101700.0,1.24934219]
[1734155786073,0.73522503,101710.0,101700.0,1.24934219]
[1734155788178,0.37442503,101710.0,101700.0,1.24934219]
[1734155788478,1.09602503,101710.0,101700.0,1.24934219]
[1734155788873,1.00765262,101710.0,101700.0,1.00244317]
[1734155789080,1.00765262,101710.0,101700.0,1.29725868]
[1734155789769,1.00765262,101710.0,101700.0,0.94408342]
[1734155790485,1.03765262,101710.0,101700.0,0.94408342]
[1734155791170,1.18476588,101710.0,101700.0,1.29725868]
[1734155794974,1.03765262,101710.0,101700.0,0.94408342]
[1734155802885,0.97445262,101710.0,101700.0,0.94408342]
[1734155803079,0.94315262,101710.0,101700.0,0.94408342]
[1734155806483,0.22155262,101710.0,101700.0,0.94408342]
[1734155806785,0.94315262,101710.0,101700.0,0.94408342]
[1734155806979,0.94315262,101710.0,101700.0,1.29725868]
[1734155807587,1.09026588,101710.0,101700.0,1.29725868]
[1734155807887,0.94315262,101710.0,101700.0,1.29725868]
[1734155808480,1.09026588,101710.0,101700.0,1.29725868]
[1734155809282,1.03548206,101710.0,101700.0,1.3520425]
[1734155809489,0.97678441,101710.0,101700.0,1.3520425]
[1734155810991,0.97678441,101710.0,101700.0,1.05722699]
[1734155811888,0.97678441,101710.0,101700.0,1.30475237]
[1734155812279,0.97678441,101710.0,101700.0,1.35200001]
[1734155813182,0.8883688,101710.0,101700.0,1.35200001]
[1734155813984,1.03548206,101710.0,101700.0,1.35200001]
[1734155814177,1.03548206,101710.0,101700.0,1.29721619]
[1734155814383,1.03548206,101710.0,101700.0,1.35200001]
[1734155815287,1.09026588,101710.0,101700.0,1.29721619]
[1734155815489,1.09026588,101710.0,101700.0,1.54513936]
[1734155816385,1.09026588,101710.0,101700.0,1.29721619]
[1734155816585,1.09026588,101710.0,101700.0,1.54520227]
[1734155816894,1.09026588,101710.0,101700.0,1.25042925]
[1734155817287,1.03548206,101710.0,101700.0,1.30521307]
[1734155818285,1.03548206,101710.0,101700.0,1.60011409]
[1734155818687,1.03548206,101710.0,101700.0,1.30521307]
[1734155819690,1.03548206,101710.0,101700.0,1.60011737]
[1734155819893,1.03548206,101710.0,101700.0,1.30521307]
[1734155820989,1.03548206,101710.0,101700.0,1.30484657]
[1734155821289,1.03548206,101710.0,101700.0,1.25006275]
[1734155821685,1.03548206,101710.0,101700.0,1.30484657]
[1734155828183,1.06828206,101710.0,101700.0,1.25006275]
[1734155828382,1.12306588,101710.0,101700.0,1.25006275]
[1734155828584,1.12306588,101710.0,101700.0,1.29735557]
[1734155828791,1.00545308,101710.0,101700.0,1.29735557]
[1734155830184,1.00545308,101710.0,101700.0,0.94418031]
[1734155830391,1.03755308,101710.0,101700.0,0.94418031]
[1734155840090,1.03755308,101710.0,101700.0,1.17999728]
[1734155840502,1.03755308,101710.0,101700.0,0.94418031]
[1734155852421,0.31595308,101710.0,101700.0,0.94418031]
[1734155852822,1.03755308,101710.0,101700.0,0.94418031]
[1734155853321,0.98276926,101710.0,101700.0,0.94418031]
[1734155853627,1.03755308,101710.0,101700.0,0.94418031]
[1734155855930,0.31595308,101710.0,101700.0,0.94418031]
[1734155856321,1.03755308,101710.0,101700.0,0.94418031]
[1734155857027,0.31595308,101710.0,101700.0,0.94418031]
[1734155857231,1.03755308,101710.0,101700.0,0.94418031]
[1734155859124,1.21438963,101710.0,101700.0,0.94418031]
[1734155860027,1.18228963,101710.0,101700.0,1.29735557]
[1734155860225,1.12750581,101710.0,101700.0,1.29735557]
[1734155860428,1.09470581,101710.0,101700.0,1.35213939]
[1734155860632,1.09470581,101710.0,101700.0,1.29735557]
[1734155860834,0.91786926,101710.0,101700.0,1.29735557]
[1734155862834,0.91786926,101710.0,101700.0,0.94418031]
[1734155867040,0.19626926,101710.0,101700.0,0.94418031]
[1734155867339,0.91786926,101710.0,101700.0,0.94418031]
[1734155868032,1.12760581,101710.0,101700.0,0.94418031]
[1734155869537,1.00555308,101710.0,101700.0,0.89501931]
[1734155869842,1.21258963,101710.0,101700.0,0.63094715]
[1734155874542,1.22734963,101710.0,101700.0,0.63094715]
[1734155875336,0.50574963,101710.0,101700.0,0.63094715]
[1734155875737,1.22734963,101710.0,101700.0,0.63094715]
[1734155878150,1.22734963,101710.0,101700.0,0.33603475]
[1734155880251,0.50574963,101710.0,101700.0,0.33603475]
[1734155880551,1.22734963,101710.0,101700.0,0.33603475]
[1734155881541,1.08023637,101710.0,101700.0,0.33603475]
[1734155884844,1.08023637,101710.0,101700.0,0.10010691]
[1734155886451,1.02545255,101710.0,101700.0,0.10010691]
[1734155886656,1.08023637,101710.0,101700.0,0.10010691]
[1734155888445,0.35863637,101710.0,101700.0,0.10010691]
[1734155888955,1.08023637,101710.0,101700.0,0.10010691]
[1734155889255,1.22743142,101710.0,101700.0,0.10010691]
[1734155891053,1.14957142,101710.0,101700.0,0.15489073]
[1734155891352,0.97273487,101710.0,101700.0,0.33603475]
[1734155894152,1.14957142,101710.0,101700.0,0.33603475]
[1734155894358,0.97273487,101710.0,101700.0,0.33603475]
[1734155896155,1.14957142,101710.0,101700.0,0.33603475]
[1734155898071,0.42797142,101710.0,101700.0,0.33603475]
[1734155898261,1.14957142,101710.0,101700.0,0.33603475]
[1734155899157,1.00237637,101710.0,101700.0,0.33603475]
[1734155902563,0.28077637,101710.0,101700.0,0.33603475]
[1734155902870,1.00237637,101710.0,101700.0,0.33603475]
[1734155903572,0.28077637,101710.0,101700.0,0.33603475]
[1734155903866,1.00237637,101710.0,101700.0,0.33603475]
[1734155904963,0.94759255,101710.0,101700.0,0.33603475]
[1734155905164,1.00237637,101710.0,101700.0,0.33603475]
[1734155907763,0.94759255,101710.0,101700.0,0.33603475]
[1734155907969,1.00237637,101710.0,101700.0,0.33603475]
[1734155911964,0.94759255,101710.0,101700.0,0.33603475]
[1734155912267,0.98674447,101710.0,101700.0,0.90692321]
[1734155912462,0.98674447,101710.0,101700.0,1.35646266]
[1734155912663,0.92782582,101710.0,101700.0,1.35646266]
[1734155913065,0.92782582,101710.0,101700.0,1.65117985]
[1734155913269,0.97698182,101710.0,101700.0,1.65117985]
[1734155913966,0.97698182,101710.0,101700.0,1.6506917]
[1734155914168,0.97698182,101710.0,101700.0,1.406728]
[1734155915975,0.97698182,101710.0,101700.0,1.05355274]
[1734155916475,0.97698182,101710.0,101700.0,1.06336888]
[1734155918072,0.61618182,101710.0,101700.0,1.06336888]
[1734155918277,0.49833715,101710.0,101700.0,1.06336888]
[1734155919571,0.49833715,101710.0,101700.0,1.05355274]
[1734155919777,0.52780067,101710.0,101700.0,0.99876892]
[1734155924578,0.49817126,101710.0,101700.0,0.99876892]
[1734155925690,0.13737126,101710.0,101700.0,0.99876892]
[1734155925877,0.49817126,101710.0,101700.0,0.99876892]
[1734155928980,0.61601593,101710.0,101700.0,1.23423819]
[1734155929485,0.61601593,101710.0,101700.0,0.939521]
[1734155930683,0.25521593,101710.0,101700.0,0.939521]
[1734155930882,0.61601593,101710.0,101700.0,0.939521]
[1734155931081,0.61601593,101710.0,101700.0,1.23423819]
[1734155931381,0.25521593,101710.0,101700.0,1.23423819]
[1734155931580,0.61601593,101710.0,101700.0,1.23423819]
[1734155932986,0.25521593,101710.0,101700.0,1.23423819]
[1734155933192,0.61601593,101710.0,101700.0,1.23423819]
[1734155933782,0.25521593,101710.0,101700.0,1.23423819]
[1734155933984,0.61601593,101710.0,101700.0,1.23423819]
[1734155934486,0.67079975,101710.0,101700.0,1.13029337]
[1734155934686,0.76118429,101710.0,101700.0,0.83557618]
[1734155934886,0.82408429,101710.0,101700.0,0.83557618]
[1734155935081,0.82387466,101710.0,101700.0,0.60010691]
[1734155935285,0.82388048,101710.0,101700.0,0.83557618]
[1734155935690,0.82388038,101710.0,101700.0,0.83557618]
[1734155936286,0.82388361,101710.0,101700.0,0.83557618]
[1734155941094,0.70623962,101710.0,101700.0,0.83557618]
[1734155941390,0.82388629,101710.0,101700.0,0.83557618]
[1734155941899,1.18468629,101710.0,101700.0,0.83557618]
[1734155942091,1.06703962,101710.0,101700.0,0.83557618]
[1734155944999,0.34543962,101710.0,101700.0,0.83557618]
[1734155945203,1.06703962,101710.0,101700.0,0.83557618]
[1734155946403,0.34543962,101710.0,101700.0,0.83557618]
[1734155946597,1.06703962,101710.0,101700.0,0.83557618]
[1734155949799,1.06703962,101710.0,101700.0,0.33557618]
[1734155950106,1.06703962,101710.0,101700.0,0.10010691]
[1734155950296,1.24387617,101710.0,101700.0,0.10010691]
[1734155950999,1.06703962,101710.0,101700.0,0.10010691]
[1734155951201,1.24387617,101710.0,101700.0,0.10010691]
[1734155952701,1.06703962,101710.0,101700.0,0.10010691]
[1734155953098,1.06703962,101710.0,101700.0,0.33557618]
[1734155953804,1.00413962,101710.0,101700.0,0.33557618]
[1734155954196,1.12178469,101710.0,101700.0,0.33557618]
[1734155955104,1.00413962,101710.0,101700.0,0.33557618]
[1734155957602,1.00413962,101710.0,101700.0,0.38473718]
[1734155958803,1.00413962,101710.0,101700.0,0.67945437]
[1734155961310,0.28253962,101710.0,101700.0,0.67945437]
[1734155962005,1.00413962,101710.0,101700.0,0.67945437]
[1734155962210,0.45937617,101710.0,101700.0,0.67945437]
[1734155962405,1.09489235,101710.0,101700.0,0.73423819]
[1734155962614,0.9180558,101710.0,101700.0,0.73423819]
[1734155962812,0.9180558,101710.0,101700.0,1.23423819]
[1734155964115,0.9180558,101710.0,101700.0,0.99876892]
[1734155966718,0.9180558,101710.0,101700.0,1.17985394]
[1734155968205,0.9180558,101710.0,101700.0,0.99876892]
[1734155970407,0.9180558,101710.0,101700.0,1.03096892]
[1734155973210,0.8688998,101710.0,101700.0,1.08575274]
[1734155973418,0.83935585,101710.0,101700.0,1.438928]
[1734155974319,0.92766481,101710.0,101700.0,1.438928]
[1734155976420,0.92766481,101710.0,101700.0,1.08575274]
[1734155976618,0.92766481,101710.0,101700.0,1.09556818]
[1734155977021,0.80990896,101710.0,101700.0,1.6949615]
[1734155977218,0.44910896,101710.0,101700.0,1.6949615]
[1734155978921,0.44910896,101710.0,101700.0,1.45402625]
[1734155979122,0.56686481,101720.0,101710.0,0.049156]
[1734155979322,0.56686481,101720.0,101710.0,0.46138066]
[1734155979715,0.44910896,101720.0,101710.0,1.31455592]
[1734155980316,0.44910896,101720.0,101710.0,0.96138066]
[1734155981523,0.08830896,101720.0,101710.0,1.36933974]
[1734155981824,0.44910896,101720.0,101710.0,1.36933974]
[1734155982123,0.3608,101720.0,101710.0,1.36933974]
[1734155983227,0.98946871,101730.0,101710.0,1.36933974]
[1734155983429,0.62610871,101730.0,101720.0,0.10393582]
[1734155983719,0.57696071,101730.0,101720.0,0.10393582]
[1734155984119,0.57696071,101730.0,101720.0,0.60393582]
[1734155985325,0.45920486,101730.0,101720.0,0.65871964]
[1734155986127,0.45920486,101730.0,101720.0,0.95326048]
[1734155986318,0.45920486,101730.0,101720.0,0.65871964]
[1734155986926,0.3708959,101730.0,101720.0,0.65871964]
[1734155987226,0.3708959,101730.0,101720.0,0.95326048]
[1734155987529,0.3708959,101730.0,101720.0,0.65871964]
[1734155990230,0.25520881,101740.0,101720.0,0.66865699]
[1734155990424,0.26504667,101740.0,101730.0,0.10393082]
[1734155990627,0.62584667,101740.0,101730.0,0.10393082]
[1734155994437,0.26504667,101740.0,101730.0,0.10393082]
[1734155994624,0.62584667,101740.0,101730.0,0.10393082]
[1734155995325,0.26504667,101740.0,101730.0,0.10393082]
[1734155995535,0.62584667,101740.0,101730.0,0.10393082]
[1734155995930,0.57670267,101740.0,101730.0,0.10393082]
[1734155996233,0.44910896,101740.0,101730.0,0.10393082]
[1734155996433,0.44910896,101740.0,101730.0,0.63523082]
[1734155997032,0.3608,101740.0,101730.0,0.63523082]
[1734155999331,0.3608,101740.0,101730.0,0.580447]
[1734155999539,0.3608,101740.0,101730.0,0.63523082]
[1734156000748,0.409942,101740.0,101730.0,0.63523082]
[1734156001842,0.409942,101740.0,101730.0,0.60393082]
[1734156002540,0.49825096,101740.0,101730.0,0.60393082]
[1734156002744,0.409942,101740.0,101730.0,0.60393082]
[1734156003331,0.49825096,101740.0,101730.0,0.60393082]
[1734156004332,0.49825096,101740.0,101730.0,0.89847166]
[1734156008738,0.61600681,101740.0,101730.0,0.89847166]
[1734156010045,0.49825096,101740.0,101730.0,0.89847166]
[1734156010449,0.61600681,101740.0,101730.0,0.89847166]
[1734156013354,0.61600681,101740.0,101730.0,1.25164692]
[1734156013749,0.61600681,101740.0,101730.0,1.1968631]
[1734156013947,0.67079063,101740.0,101730.0,0.84368784]
[1734156014748,0.72978147,101740.0,101730.0,0.84368784]
[1734156015446,0.36898147,101740.0,101730.0,0.84368784]
[1734156015646,1.09058147,101740.0,101730.0,0.84368784]
[1734156019661,1.09058147,101740.0,101730.0,0.79454084]
[1734156019860,0.97282562,101740.0,101730.0,0.79454084]
[1734156020061,1.09058066,101740.0,101730.0,0.79454084]
[1734156020259,1.09057581,101740.0,101730.0,0.79454084]
[1734156020450,1.0905769,101740.0,101730.0,0.79454084]
[1734156020868,0.97282562,101740.0,101730.0,0.79454084]
[1734156024269,0.97282562,101740.0,101730.0,0.5]
[1734156024463,0.97282562,101740.0,101730.0,0.79454084]
[1734156025062,0.97282562,101740.0,101730.0,0.5]
[1734156025462,1.14966217,101740.0,101730.0,0.5]
[1734156025668,1.00236237,101740.0,101730.0,0.5]
[1734156025869,1.14954515,101740.0,101730.0,0.5]
[1734156027363,1.20432897,101740.0,101720.0,0.84368984]
[1734156027568,0.76103233,101730.0,101720.0,0.84368984]
[1734156028369,0.76103233,101730.0,101720.0,0.549149]
[1734156030271,0.82603233,101730.0,101720.0,0.549149]
[1734156030978,0.82603233,101730.0,101720.0,0.5]
[1734156031282,0.67884955,101730.0,101720.0,0.5]
[1734156032080,0.82603233,101730.0,101720.0,0.549152]
[1734156036681,0.82603233,101730.0,101720.0,0.60393582]
[1734156037081,0.76103233,101730.0,101720.0,0.60393582]
[1734156037274,0.77112278,101730.0,101720.0,0.60393582]
[1734156039383,0.77112278,101730.0,101720.0,0.549152]
[1734156041487,1.13192278,101730.0,101720.0,0.549152]
[1734156043487,1.01420405,101730.0,101720.0,0.549152]
[1734156043784,1.10041781,101730.0,101720.0,0.549152]
[1734156044581,1.10042715,101730.0,101720.0,0.549152]
[1734156047789,0.98280405,101730.0,101720.0,0.549152]
[1734156048786,1.1596406,101730.0,101720.0,0.5]
[1734156048988,0.98280405,101730.0,101720.0,0.5]
[1734156049192,1.1596406,101730.0,101720.0,0.5]
[1734156054592,0.4380406,101730.0,101720.0,0.5]
[1734156054892,1.1596406,101730.0,101720.0,0.5]
[1734156056405,0.049152,101720.0,101710.0,1.55148199]
[1734156056586,0.61602493,101720.0,101710.0,1.25792074]
[1734156056786,0.58249178,101720.0,101710.0,1.25792074]
[1734156057196,0.72967456,101720.0,101710.0,1.20876774]
[1734156057492,0.72967456,101720.0,101710.0,0.82549248]
[1734156057493,0.6119186,101720.0,101710.0,0.82549248]
[1734156058191,0.78875515,101720.0,101710.0,0.82549248]
[1734156058498,0.6119186,101720.0,101710.0,0.5307]
[1734156058700,0.6119186,101720.0,101710.0,0.82549248]
[1734156060696,0.82195515,101720.0,101710.0,0.5307]
[1734156062504,0.6451186,101720.0,101710.0,0.5307]
[1734156062804,0.82195515,101720.0,101710.0,0.5307]
[1734156063496,0.6451186,101720.0,101710.0,0.5307]
[1734156064096,0.69990242,101720.0,101710.0,0.5307]
[1734156064402,0.6451186,101720.0,101710.0,0.5]
[1734156064599,0.69990242,101720.0,101710.0,0.5]
[1734156064990,0.049157,101710.0,101700.0,1.32943465]
[1734156065191,0.67064202,101710.0,101700.0,1.32943465]
[1734156065988,0.67064202,101710.0,101700.0,0.97625939]
[1734156066594,0.67064202,101710.0,101700.0,0.92709939]
[1734156066795,0.67064202,101710.0,101700.0,0.89489939]
[1734156069898,0.6158582,101710.0,101700.0,0.89489939]
[1734156070096,0.67064202,101710.0,101700.0,0.94406039]
[1734156070300,0.67064202,101710.0,101700.0,0.97706039]
[1734156071387,0.68043814,101710.0,101700.0,0.97706039]
[1734156071589,0.50799649,101710.0,101700.0,0.73705173]
[1734156071793,0.62565432,101710.0,101700.0,1.03184421]
[1734156074391,0.62565432,101710.0,101700.0,0.97706039]
[1734156074593,0.62565432,101710.0,101700.0,1.03184421]
[1734156075402,0.62565432,101710.0,101700.0,0.97706039]
[1734156075902,0.68043814,101710.0,101700.0,0.97706039]
[1734156078796,0.62565432,101710.0,101700.0,0.97706039]
[1734156082297,0.68043814,101710.0,101700.0,0.94406039]
[1734156083596,0.59219477,101710.0,101700.0,0.94406039]
[1734156085996,0.68039972,101710.0,101700.0,0.94406039]
[1734156086203,0.76860484,101710.0,101700.0,0.94406039]
[1734156086401,0.76860484,101710.0,101700.0,1.29723565]
[1734156086402,0.8275825,101710.0,101700.0,1.29723565]
[1734156086602,0.8275825,101710.0,101700.0,0.94406039]
[1734156087310,0.8275825,101710.0,101700.0,1.29723565]
[1734156094010,0.73937755,101710.0,101700.0,1.29723565]
[1734156097409,1.10017755,101710.0,101700.0,1.29723565]